bitfinex-derivatives/quotes_SOLF0:USTF0_20241222
["timestamp","ask_amount","ask_price","bid_price","bid_amount"]
[1734888526176,2.744,182.34,182.3,2.7444]
[1734888526375,2.82,182.37,182.21,2.82]
[1734888527573,2.7447,182.29,182.25,2.7452]
[1734888529883,2.82,182.31,182.21,2.82]
[1734888530084,5.5643,182.31,182.26,2.7449]
[1734888530271,5.5643,182.31,182.22,2.82]
[1734888530471,5.5643,182.31,182.24,2.7453]
[1734888530674,5.5643,182.31,182.22,2.82]
[1734888531178,2.82,182.31,182.22,2.82]
[1734888531476,2.82,182.31,182.2,25.75508978]
[1734888531676,2.82,182.31,182.2,7.7795]
[1734888531872,2.7449,182.28,182.23,2.7455]
[1734888534583,2.7449,182.28,182.24,2.7453]
[1734888535584,20.79558978,182.25,182.14,91.23868968]
[1734888535881,20.79558978,182.21,182.14,91.23868968]
[1734888536083,20.79558978,182.17,182.14,91.23868968]
[1734888536286,2.82,182.16,182.14,89.92498968]
[1734888536485,2.7467,182.15,182.14,89.92498968]
[1734888537185,2.7471,182.13,182.06,2.7479]
[1734888537388,2.82,182.16,182.05,1.6636]
[1734888537991,2.7469,182.14,182.08,2.7477]
[1734888540183,2.7469,182.14,182.09,2.7476]
[1734888540784,37.22558978,182.1,181.92,151.37885012]
[1734888540989,3.14,182.09,181.92,151.37885012]
[1734888541185,20.79558978,182.08,181.92,154.51885012]
[1734888541385,2.7481,182.07,181.99,2.7491]
[1734888541686,20.79558978,182.08,181.93,1.7097]
[1734888542286,33.93602804,182.07,181.93,1.7097]
[1734888543486,2.7483,182.05,181.98,2.7493]
[1734888544490,33.93602804,182.07,181.99,2.7491]
[1734888545494,2.7483,182.05,181.99,2.7491]
[1734888545689,33.93602804,182.07,181.95,3.2985]
[1734888545884,33.93602804,182.1,181.95,3.2985]
[1734888546890,3.14,182.11,181.95,3.2985]
[1734888547089,33.93602804,182.14,181.96,34.94608577]
[1734888547286,33.93602804,182.14,181.96,110.19764245]
[1734888547792,33.93602804,182.11,181.96,110.19764245]
[1734888548190,2.7476,182.1,181.96,110.19764245]
[1734888548381,2.7476,182.1,181.97,3.14]
[1734888548783,33.93602804,182.11,181.96,110.19764245]
[1734888548986,33.93602804,182.11,181.97,1.0100321]
[1734888549189,33.93602804,182.11,181.98,3.14]
[1734888549487,2.747,182.13,181.98,3.14]
[1734888549894,33.93602804,182.14,181.98,3.14]
[1734888550088,36.68292804,182.14,181.98,3.14]
[1734888550286,36.68292804,182.14,181.99,1.00995961]
[1734888550485,36.68292804,182.14,182.08,2.7477]
[1734888550688,2.7467,182.16,182.07,3.14]
[1734888550887,2.7467,182.16,182.08,1.6252]
[1734888551389,2.7467,182.16,182.09,2.7475]
[1734888554196,2.7467,182.16,182.1,2.7475]
[1734888554403,33.93602804,182.17,182.08,1.6252]
[1734888554596,36.68252804,182.17,182.08,1.6252]
[1734888555507,36.68252804,182.17,182.11,2.7473]
[1734888558707,36.68252804,182.17,182.12,2.7471]
[1734888560706,2.7463,182.18,182.14,2.7468]
[1734888565510,16.5,182.35,182.14,3.14]
[1734888565811,20.85263249,182.28,182.15,1.6483]
[1734888566000,20.85263249,182.25,182.16,2.7466]
[1734888566709,2.7459,182.21,182.16,2.7466]
[1734888568610,20.85263249,182.25,182.15,1.6483]
[1734888568611,2.7457,182.22,182.18,2.7463]
[1734888570113,2.7455,182.23,182.15,1.6483]
[1734888570415,20.85263249,182.28,182.16,1.5791]
[1734888570809,20.85263249,182.28,182.2,2.746]
[1734888571212,2.7451,182.26,182.2,2.746]
[1734888571518,23.89263249,182.31,182.22,2.7456]
[1734888571715,23.89263249,182.31,182.19,3.04]
[1734888571912,2.7451,182.26,182.22,2.7456]
[1734888573515,2.7451,182.26,182.19,3.04]
[1734888574415,2.7451,182.26,182.21,2.7458]
[1734888574609,2.7451,182.26,182.19,3.04]
[1734888575217,2.7451,182.26,182.21,2.7458]
[1734888575918,2.7451,182.26,182.22,2.7456]
[1734888579119,23.89263249,182.31,182.19,3.04]
[1734888579321,2.7449,182.28,182.24,2.7453]
[1734888579519,20.85263249,182.34,182.19,3.04]
[1734888579716,23.89263249,182.34,182.19,3.04]
[1734888579917,2.7448,182.29,182.24,2.7453]
[1734888580221,2.7448,182.29,182.24,5.7853]
[1734888580419,2.7448,182.29,182.24,3.04]
[1734888580723,2.7448,182.29,182.25,2.7452]
[1734888582726,2.7443,182.31,182.27,2.7449]
[1734888584923,3.04,182.37,182.21,20.85263249]
[1734888585229,20.85263249,182.29,182.19,1.7367]
[1734888585417,23.89263249,182.29,182.18,3.04]
[1734888585616,2.7459,182.21,182.18,5.7863]
[1734888585815,23.89263249,182.29,182.18,5.7863]
[1734888586227,2.7457,182.22,182.18,5.7863]
[1734888587126,2.7457,182.22,182.18,2.7463]
[1734888587327,2.7459,182.21,182.18,5.7863]
[1734888587523,2.7459,182.21,182.18,2.7463]
[1734888587729,23.89263249,182.29,182.18,2.7463]
[1734888588632,2.746,182.22,182.18,2.7463]
[1734888588924,23.89263249,182.29,182.17,5.7866]
[1734888589125,20.85263249,182.26,182.16,1.5791]
[1734888589332,20.85263249,182.26,182.15,6.93333403]
[1734888589933,2.7464,182.19,182.15,9.68023403]
[1734888592132,2.7464,182.19,182.15,6.93333403]
[1734888592332,20.85263249,182.26,182.15,6.93333403]
[1734888592733,2.7464,182.19,182.15,6.93333403]
[1734888593535,20.85263249,182.26,182.15,6.93333403]
[1734888593932,20.85263249,182.26,182.15,3.89333403]
[1734888594134,2.7465,182.19,182.15,3.89333403]
[1734888594435,20.85263249,182.26,182.15,1.7291]
[1734888594837,2.7465,182.18,182.15,1.7291]
[1734888597339,2.7465,182.18,182.15,4.476]
[1734888597536,2.7465,182.18,182.15,1.7291]
[1734888597941,20.85263249,182.2,182.11,1.6857]
[1734888598136,13.03706221,182.18,182.07,3.04]
[1734888598340,16.07706221,182.18,182.08,2.748]
[1734888598540,2.7475,182.12,182.08,2.748]
[1734888600135,20.8556614,182.21,182.07,3.04]
[1734888600334,2.92,182.2,182.07,3.04]
[1734888601037,2.92,182.2,182.11,2.7475]
[1734888601440,2.747,182.15,182.11,2.7475]
[1734888601943,2.7473,182.13,182.09,2.7478]
[1734888602239,2.7473,182.13,182.05,20.8556614]
[1734888602240,20.8556614,182.18,182.05,2.92]
[1734888602439,20.8556614,182.18,182.04,1.6772]
[1734888602632,20.8556614,182.18,182.04,4.5972]
[1734888602839,20.8556614,182.18,182.06,2.7483]
[1734888603038,20.8556614,182.18,182.04,4.5972]
[1734888603239,20.8556614,182.07,181.94,89.79337248]
[1734888603431,20.8556614,182.04,181.94,89.79337248]
[1734888603634,2.92,182.03,181.94,89.79337248]
[1734888604837,2.92,182.03,181.9,1.7465]
[1734888605036,20.8556614,182.01,181.9,1.7465]
[1734888605438,2.7497,181.97,181.91,2.7505]
[1734888606039,2.7494,181.99,181.9,1.7465]
[1734888606538,2.7494,181.99,181.94,2.7501]
[1734888606742,5.6692,182.0,181.9,1.7465]
[1734888606939,2.7492,182.0,181.9,1.7465]
[1734888607143,2.92,182.03,181.91,2.92]
[1734888608043,5.6689,182.03,181.96,2.7497]
[1734888609042,2.749,182.02,181.96,2.7497]
[1734888612346,2.92,182.03,181.94,2.75]
[1734888612347,2.7492,182.0,181.94,2.75]
[1734888612543,2.92,182.03,181.94,2.75]
[1734888612741,20.8556614,182.07,181.94,2.75]
[1734888612946,2.7493,182.0,181.94,2.75]
[1734888614246,2.7493,182.0,181.95,2.75]
[1734888614944,20.8556614,182.07,181.91,79.21212618]
[1734888615150,2.7489,182.03,181.96,2.7497]
[1734888615349,2.7489,182.03,181.97,1.6129]
[1734888615738,2.7489,182.03,181.97,4.3625]
[1734888619150,2.7489,182.03,181.97,1.6129]
[1734888619352,2.7489,182.03,181.98,2.7495]
[1734888622256,2.7486,182.04,181.99,2.7493]
[1734888622456,2.92,182.05,181.99,2.7493]
[1734888623558,2.92,182.05,181.97,1.6129]
[1734888623754,20.8556614,182.04,181.97,1.6129]
[1734888624559,2.7494,182.0,181.97,1.6129]
[1734888626162,2.7494,181.99,181.97,1.6129]
[1734888628167,2.7501,181.94,181.93,76.28423039]
[1734888628471,2.92,181.97,181.83,4.6052]
[1734888628662,2.92,181.96,181.84,1.593]
[1734888628863,2.7505,181.92,181.87,2.7511]
[1734888629060,2.7505,181.92,181.84,1.593]
[1734888629358,2.7503,181.93,181.88,2.7509]
[1734888631570,2.7502,181.94,181.89,2.7507]
[1734888632072,2.7502,181.94,181.84,4.593]
[1734888632470,2.7502,181.94,181.85,3.0]
[1734888633872,2.7502,181.94,181.89,2.7508]
[1734888634877,2.7501,181.94,181.89,2.7508]
[1734888635876,2.7501,181.94,181.85,3.0]
[1734888636078,2.7501,181.94,181.9,2.7507]
[1734888638472,2.2521,181.86,181.83,76.32495925]
[1734888638677,3.0,181.9,181.82,2.16774263]
[1734888638877,3.0,181.89,181.82,2.16774263]
[1734888639869,5.751,181.89,181.84,2.7515]
[1734888642376,3.0,181.89,181.82,2.16774263]
[1734888643581,3.0,181.89,181.86,2.7512]
[1734888644380,2.7507,181.9,181.86,2.7512]
[1734888644879,3.0,181.92,181.82,2.16774263]
[1734888645079,3.0,181.94,181.82,23.02340403]
[1734888645270,84.75322154,181.97,181.82,23.02340403]
[1734888645476,2.7501,181.95,181.85,20.8556614]
[1734888645781,20.8556614,182.01,181.86,8.0192]
[1734888645977,2.7499,181.96,181.86,8.0192]
[1734888646374,3.0,182.0,181.86,8.0192]
[1734888646678,2.7497,181.97,181.93,2.7502]
[1734888647283,2.7496,181.98,181.93,2.7502]
[1734888647683,2.7496,181.98,181.94,2.7501]
[1734888648681,2.7494,181.99,181.95,2.7499]
[1734888649579,2.7494,181.99,181.96,2.7498]
[1734888651687,84.72792524,182.03,181.91,23.8556614]
[1734888652186,2.7489,182.02,181.91,23.8556614]
[1734888652688,2.7485,182.05,182.0,2.7491]
[1734888653083,2.7485,182.05,181.97,3.0]
[1734888654483,2.7483,182.06,181.97,3.0]
[1734888654678,3.0,182.09,181.97,3.0]
[1734888655585,3.0,182.09,181.97,23.8556614]
[1734888655980,20.8556614,182.1,181.97,23.8556614]
[1734888656187,20.8556614,182.13,181.97,23.8556614]
[1734888656381,3.0,182.12,181.97,23.8556614]
[1734888656578,3.0,182.13,182.0,20.8556614]
[1734888656778,2.7477,182.1,182.05,2.7483]
[1734888656982,2.7477,182.1,182.04,3.0]
[1734888657286,3.0,182.13,182.04,3.0]
[1734888657484,20.8556614,182.16,182.04,3.0]
[1734888657687,3.0,182.17,182.05,3.2436]
[1734888657888,3.0,182.18,182.05,4.962]
[1734888658285,2.7471,182.15,182.05,4.962]
[1734888658988,2.7471,182.15,182.1,2.7477]
[1734888660891,2.7471,182.15,182.11,2.7475]
[1734888661384,2.7468,182.16,182.11,2.7475]
[1734888661590,20.8556614,182.22,182.09,2.96]
[1734888661792,23.8156614,182.22,182.09,2.96]
[1734888662187,2.7464,182.19,182.15,2.7469]
[1734888662590,2.7462,182.21,182.16,2.7468]
[1734888662792,23.8156614,182.25,182.16,2.7468]
[1734888663099,20.8556614,182.28,182.14,2.96]
[1734888663289,0.9031212,182.27,182.15,24.3063614]
[1734888663488,2.96,182.29,182.15,25.8924614]
[1734888663690,2.7455,182.25,182.15,25.8924614]
[1734888664089,20.8556614,182.31,182.15,25.8924614]
[1734888664290,2.7453,182.27,182.23,2.7457]
[1734888664492,2.96,182.31,182.21,2.96]
[1734888665294,2.7449,182.29,182.24,2.7455]
[1734888665689,2.7449,182.29,182.21,2.96]
[1734888665892,209.68042492,182.3,182.25,2.7453]
[1734888666091,2.7448,182.3,182.25,2.7453]
[1734888666589,2.7445,182.32,182.27,2.7451]
[1734888666993,23.8156614,182.37,182.27,2.7451]
[1734888667293,2.7444,182.33,182.26,2.96]
[1734888667493,20.8556614,182.4,182.26,2.96]
[1734888667699,23.8156614,182.4,182.26,2.96]
[1734888667896,23.8156614,182.4,182.3,2.7446]
[1734888668296,2.96,182.4,182.3,2.7446]
[1734888668499,2.7436,182.38,182.33,2.7442]
[1734888668697,20.8556614,182.46,182.31,2.96]
[1734888668998,2.743,182.41,182.36,2.7436]
[1734888669201,2.743,182.41,182.36,5.7036]
[1734888669491,2.7427,182.43,182.36,2.96]
[1734888669699,20.8556614,182.43,182.33,2.96]
[1734888670295,2.7441,182.34,182.29,2.96]
[1734888670799,2.7441,182.34,182.29,5.7048]
[1734888671001,2.7439,182.35,182.29,5.7048]
[1734888671294,2.96,182.39,182.29,2.96]
[1734888671503,2.7437,182.37,182.32,2.7444]
[1734888672399,2.7434,182.39,182.29,2.96]
[1734888673298,2.7432,182.41,182.29,2.96]
[1734888673895,2.7427,182.44,182.33,20.8556614]
[1734888674100,2.96,182.51,182.36,20.8556614]
[1734888674304,2.96,182.51,182.37,6.2856]
[1734888674603,2.7425,182.45,182.39,2.7432]
[1734888674800,2.96,182.51,182.37,6.2856]
[1734888675005,20.8556614,182.5,182.38,2.96]
[1734888675598,2.7431,182.41,182.38,2.96]
[1734888675797,2.96,182.46,182.38,2.96]
[1734888677903,2.7426,182.44,182.38,2.96]
[1734888678103,2.96,182.46,182.38,2.96]
[1734888678898,20.8556614,182.52,182.38,2.96]
[1734888679099,2.96,182.51,182.38,2.96]
[1734888679495,2.7423,182.47,182.41,2.7429]
[1734888680507,2.742,182.48,182.38,2.96]
[1734888680702,2.96,182.52,182.39,20.8556614]
[1734888681103,2.7418,182.5,182.39,20.8556614]
[1734888681500,2.96,182.54,182.46,2.7423]
[1734888681701,2.7415,182.51,182.46,2.7423]
[1734888682103,2.96,182.54,182.46,2.7423]
[1734888682505,2.96,182.54,182.43,2.96]
[1734888682696,2.96,182.54,182.41,2.96]
[1734888683000,2.7417,182.51,182.41,5.7029]
[1734888683201,2.96,182.54,182.41,2.96]
[1734888683601,2.96,182.54,182.43,2.7427]
[1734888684005,2.7422,182.47,182.43,2.7427]
[1734888685998,2.96,182.54,182.41,2.96]
[1734888686202,2.7418,182.5,182.41,2.96]
[1734888686404,2.7418,182.5,182.42,1.6882]
[1734888687407,2.7418,182.5,182.42,22.5438614]
[1734888687604,2.7418,182.5,182.43,3.2694]
[1734888687804,2.96,182.54,182.43,3.2694]
[1734888688210,20.8556614,182.52,182.27,5.49]
[1734888688404,20.8556614,182.52,182.35,20.8556614]
[1734888688597,20.8556614,182.52,182.36,2.96]
[1734888688799,2.96,182.54,182.38,20.8556614]
[1734888689103,2.96,182.54,182.41,20.8556614]
[1734888689298,2.9,182.56,182.42,2.9]
[1734888689498,2.9,182.57,182.42,2.9]
[1734888689705,2.9,182.57,182.44,20.8556614]
[1734888689901,2.7413,182.53,182.44,20.8556614]
[1734888690207,20.8556614,182.61,182.44,20.8556614]
[1734888690407,2.9,182.6,182.44,20.8556614]
[1734888690908,2.9,182.59,182.49,2.7417]
[1734888691105,2.9,182.59,182.49,5.6417]
[1734888691403,2.7408,182.56,182.49,2.9]
[1734888691610,2.9,182.59,182.5,2.7416]
[1734888692004,2.7421,182.48,182.44,2.9]
[1734888692408,2.9,182.54,182.39,4.8858]
[1734888692607,20.8556614,182.52,182.42,2.7428]
[1734888693009,2.9,182.54,182.4,2.9]
[1734888693214,2.7417,182.5,182.45,2.7424]
[1734888693514,2.7417,182.5,182.4,2.9]
[1734888693710,2.9,182.54,182.4,2.9]
[1734888693909,2.7417,182.5,182.45,2.7423]
[1734888694105,2.9,182.54,182.45,2.7423]
[1734888695613,2.7419,182.49,182.45,2.7423]
[1734888695809,2.9,182.54,182.4,2.9]
[1734888696108,2.9,182.54,182.41,2.9]
[1734888696315,20.8556614,182.52,182.39,4.8858]
[1734888697018,2.7426,182.44,182.4,2.7431]
[1734888697217,23.7556614,182.49,182.35,20.8556614]
[1734888697414,2.9,182.48,182.36,2.9]
[1734888697621,2.743,182.41,182.36,2.9]
[1734888697817,2.743,182.41,182.34,76.10976717]
[1734888698018,2.743,182.41,182.35,2.9]
[1734888698219,20.8556614,182.46,182.35,5.6439]
[1734888698414,20.8556614,182.46,182.31,5.0334]
[1734888698618,20.8556614,182.46,182.32,2.9]
[1734888698823,20.8556614,182.46,182.31,5.0334]
[1734888699219,2.7441,182.34,182.31,5.0334]
[1734888699521,2.7441,182.34,182.31,3.3833]
[1734888700215,2.7439,182.36,182.31,3.3833]
[1734888700415,2.9,182.41,182.33,2.7442]
[1734888700813,2.7436,182.37,182.33,2.7442]
[1734888701011,2.9,182.49,182.36,33.81365916]
[1734888701819,2.7421,182.48,182.39,33.81365916]
[1734888702012,2.7421,182.48,182.44,2.7426]
[1734888702521,2.7419,182.49,182.44,2.7426]
[1734888703012,2.7424,182.46,182.41,2.743]
[1734888703214,36.71365916,182.52,182.4,7.8668]
[1734888703414,4.11457192,182.51,182.4,7.8668]
[1734888703614,4.11457192,182.51,182.41,2.743]
[1734888704024,4.11457192,182.51,182.4,6.155]
[1734888704413,2.9,182.5,182.4,6.155]
[1734888705124,2.7425,182.45,182.4,3.255]
[1734888705818,2.7426,182.44,182.4,5.9982]
[1734888706425,2.9,182.5,182.4,5.9982]
[1734888706625,2.9,182.5,182.37,2.9]
[1734888706824,2.9,182.5,182.36,2.9]
[1734888707025,33.81365916,182.49,182.36,2.9]
[1734888707320,33.81365916,182.49,182.38,2.7434]
[1734888707523,4.11523557,182.48,182.38,2.7434]
[1734888707722,2.9,182.5,182.4,2.7432]
[1734888708224,2.7426,182.45,182.4,2.7432]
[1734888708618,2.7426,182.45,182.36,2.9]
[1734888709128,2.9,182.5,182.36,2.9]
[1734888710123,2.7427,182.44,182.39,2.7433]
[1734888710522,2.7425,182.45,182.4,2.7431]
[1734888710726,2.9,182.5,182.4,2.7431]
[1734888711924,2.7426,182.45,182.4,2.7431]
[1734888712127,2.9,182.5,182.39,2.7433]
[1734888712328,2.9,182.5,182.35,2.9]
[1734888712826,2.9,182.5,182.38,2.7435]
[1734888713030,2.7429,182.42,182.38,2.7435]
[1734888713429,2.7429,182.42,182.39,2.7433]
[1734888713625,7.01495848,182.5,182.39,2.7433]
[1734888713626,2.7427,182.43,182.39,2.7433]
[1734888713830,2.7427,182.43,182.35,2.9]
[1734888714027,2.7427,182.43,182.39,2.743]
[1734888714530,2.7427,182.42,182.38,2.7432]
[1734888714732,7.01495848,182.5,182.35,2.9]
[1734888714928,2.9,182.5,182.35,2.9]
[1734888716430,2.7426,182.43,182.39,2.7431]
[1734888718028,2.7421,182.46,182.39,33.81365916]
[1734888718228,2.9,182.52,182.4,6.3723]
[1734888719629,14.6953195,182.53,182.4,6.3723]
[1734888719630,2.88,182.51,182.4,6.3723]
[1734888719831,2.7422,182.46,182.42,2.7427]
[1734888721031,6.99495848,182.51,182.4,3.4723]
[1734888721634,2.7427,182.43,182.4,3.4723]
[1734888721835,2.88,182.46,182.4,1.7362]
[1734888722134,2.7429,182.41,182.37,2.7434]
[1734888722533,2.7429,182.41,182.35,1.6919]
[1734888723432,2.7424,182.44,182.38,2.7433]
[1734888723632,2.88,182.46,182.35,1.6919]
[1734888725136,2.7432,182.39,182.35,1.6919]
[1734888725832,2.7433,182.38,182.35,1.6919]
[1734888726037,2.88,182.41,182.35,1.6919]
[1734888726338,2.88,182.41,182.34,3.2914]
[1734888727239,2.7431,182.39,182.34,6.0352]
[1734888727634,2.7431,182.39,182.34,3.2914]
[1734888728139,2.88,182.44,182.34,3.2914]
[1734888728641,2.88,182.44,182.36,2.7435]
[1734888729139,2.7429,182.41,182.37,2.7433]
[1734888729439,31.38052854,182.49,182.34,3.2914]
[1734888729440,2.88,182.45,182.34,3.2914]
[1734888729738,2.7424,182.44,182.39,2.743]
[1734888730241,2.7424,182.44,182.4,2.743]
[1734888730436,2.7422,182.46,182.37,2.88]
[1734888730734,2.7422,182.46,182.4,2.7429]
[1734888731037,2.7422,182.46,182.38,1.6734]
[1734888731637,2.7422,182.46,182.41,2.7427]
[1734888732144,20.78783612,182.52,182.38,1.6734]
[1734888732334,29.83775678,182.57,182.39,20.78783612]
[1734888732335,2.88,182.51,182.39,20.78783612]
[1734888732540,2.88,182.5,182.39,20.78783612]
[1734888733040,2.7419,182.47,182.43,2.7424]
[1734888733238,2.7419,182.47,182.39,20.78783612]
[1734888733842,2.7419,182.47,182.44,2.7424]
[1734888734334,2.88,182.5,182.39,20.78783612]
[1734888734538,2.88,182.54,182.42,20.78783612]
[1734888734737,2.88,182.56,182.43,3.2024]
[1734888735535,2.7409,182.54,182.49,2.7415]
[1734888736341,2.7409,182.54,182.46,2.88]
[1734888736542,2.88,182.57,182.46,2.88]
[1734888736743,2.7406,182.56,182.47,1.6099]
[1734888737138,4.11327392,182.6,182.47,1.6099]
[1734888737139,2.88,182.59,182.49,2.7416]
[1734888737542,2.88,182.59,182.47,1.6099]
[1734888737745,2.7412,182.52,182.47,1.6099]
[1734888738648,2.7415,182.5,182.46,2.7421]
[1734888739048,2.7413,182.51,182.46,2.7421]
[1734888739546,2.7413,182.51,182.43,6.0824]
[1734888739547,2.7413,182.51,182.47,2.7419]
[1734888741537,2.88,182.54,182.47,2.7419]
[1734888741843,2.88,182.57,182.45,20.78783612]
[1734888742046,2.88,182.58,182.46,1.6009]
[1734888742244,2.88,182.58,182.5,2.7414]
[1734888742444,2.88,182.58,182.46,1.6009]
[1734888742747,2.7408,182.55,182.49,2.7415]
[1734888742943,2.88,182.58,182.46,1.6009]
[1734888743247,2.88,182.59,182.48,20.78783612]
[1734888743443,2.7404,182.58,182.53,2.7409]
[1734888743742,4.11350153,182.62,182.48,20.78783612]
[1734888743940,2.7401,182.6,182.56,2.7405]
[1734888744743,4.11350153,182.64,182.52,6.1535]
[1734888744946,2.7398,182.61,182.58,2.7403]
[1734888745149,4.11350153,182.66,182.53,1.7192]
[1734888745351,2.7396,182.63,182.59,2.7401]
[1734888745546,12.47773437,182.68,182.54,20.78783612]
[1734888745846,2.7393,182.65,182.6,2.7399]
[1734888746349,2.7393,182.65,182.56,2.88]
[1734888746546,2.88,182.69,182.57,20.78783612]
[1734888746948,14.70316761,182.73,182.65,2.7392]
[1734888747242,2.7385,182.7,182.65,2.7392]
[1734888748246,2.88,182.72,182.61,3.3611]
[1734888749049,2.88,182.72,182.62,1.6951]
[1734888749549,2.7384,182.71,182.62,1.6951]
[1734888749746,2.86,182.74,182.63,23.64783612]
[1734888751055,20.78783612,182.8,182.67,2.7388]
[1734888751248,3.7649837,182.79,182.67,2.7388]
[1734888751554,0.9049837,182.78,182.67,2.7388]
[1734888751745,2.7383,182.72,182.67,2.7388]
[1734888752053,2.86,182.79,182.67,2.7388]
[1734888752251,2.7388,182.69,182.63,2.86]
[1734888753549,2.7384,182.71,182.63,23.64783612]
[1734888753752,2.86,182.72,182.63,23.64783612]
[1734888754550,2.7381,182.73,182.66,2.7391]
[1734888754750,2.86,182.75,182.66,2.7391]
[1734888755151,2.86,182.75,182.62,1.6951]
[1734888755553,2.7383,182.72,182.62,1.6951]
[1734888755853,2.86,182.75,182.62,1.6951]
[1734888757456,2.7392,182.66,182.62,4.4348]
[1734888758556,2.86,182.7,182.61,3.3611]
[1734888759160,2.7395,182.64,182.61,1.6852]
[1734888759349,2.86,182.7,182.57,23.64783612]
[1734888759554,2.86,182.7,182.54,24.10713612]
[1734888759754,2.86,182.7,182.55,2.86]
[1734888760561,2.86,182.7,182.54,24.10713612]
[1734888760859,20.78783612,182.68,182.54,3.3193]
[1734888761855,2.86,182.7,182.54,24.10713612]
[1734888762556,2.86,182.69,182.54,24.10713612]
[1734888762861,2.7393,182.65,182.59,2.7401]
[1734888763159,2.86,182.69,182.54,24.10713612]
[1734888764054,2.86,182.68,182.54,24.10713612]
[1734888764260,2.86,182.68,182.57,20.78783612]
[1734888764458,2.7394,182.64,182.6,2.7399]
[1734888764656,2.7394,182.64,182.58,2.86]
[1734888765057,2.86,182.68,182.58,2.86]
[1734888765259,2.7397,182.63,182.58,2.86]
[1734888765560,2.7397,182.63,182.59,2.7401]
[1734888766061,2.86,182.68,182.59,2.7401]
[1734888766263,2.86,182.68,182.58,5.6002]
[1734888767153,2.7398,182.62,182.58,5.6002]
[1734888767552,2.7398,182.62,182.58,2.7402]
[1734888768159,2.7401,182.6,182.56,2.7405]
[1734888768464,2.86,182.62,182.54,3.3193]
[1734888768768,2.7406,182.56,182.54,3.3193]
[1734888768966,2.86,182.6,182.54,3.3193]
[1734888769159,2.86,182.64,182.54,6.1793]
[1734888769360,2.7398,182.61,182.57,2.7403]
[1734888770058,2.7398,182.61,182.54,6.1793]
[1734888770261,2.7398,182.61,182.58,2.7402]
[1734888770460,2.7397,182.62,182.58,2.7402]
[1734888770662,2.86,182.68,182.6,2.7399]
[1734888771066,2.7395,182.64,182.6,2.7399]
[1734888771465,2.7395,182.64,182.61,2.7398]
[1734888771762,2.7392,182.66,182.56,20.78783612]
[1734888771966,2.86,182.68,182.56,20.78783612]
[1734888772364,2.7394,182.64,182.56,20.78783612]
[1734888773568,2.7394,182.64,182.61,2.7398]
[1734888774964,2.7393,182.65,182.61,2.7398]
[1734888775268,2.86,182.69,182.59,2.86]
[1734888775469,2.7397,182.62,182.59,2.86]
[1734888775669,2.7397,182.62,182.56,2.86]
[1734888776370,2.7397,182.62,182.59,2.7401]
[1734888776571,2.7395,182.63,182.59,2.7401]
[1734888776871,2.86,182.69,182.59,2.7401]
[1734888777067,2.7396,182.63,182.59,2.7401]
[1734888777972,2.7392,182.65,182.61,2.7398]
[1734888778170,2.86,182.69,182.56,23.64783612]
[1734888778668,2.7391,182.66,182.62,2.7396]
[1734888780471,2.8,182.7,182.62,2.7396]
[1734888781064,2.7392,182.66,182.62,2.7396]
[1734888781269,20.78783612,182.74,182.61,2.8]
[1734888781270,2.8,182.73,182.61,2.8]
[1734888781464,59.67551359,182.79,182.62,7.7638]